fUSD/lending_fUSD_20240528
["ID","MTS","AMOUNT","RATE_DAILY","PERIOD"]
[328143956,1716930712120,-654.73,0.00032602,2]
[328143957,1716930712131,-500.0,0.00032602,2]
[328143958,1716930712142,-3338.18,0.00032602,2]
[328143959,1716930712153,-267.20199615,0.00032602,2]
[328143960,1716930712165,-1966.13,0.00032602,2]
[328143961,1716930712178,-570.33,0.00032602,2]
[328143962,1716930712190,-420.61266064,0.00032602,2]
[328143963,1716930712202,-500.0,0.00032602,2]
[328143964,1716930712215,-214.29064988,0.00032602,2]
[328143965,1716930712227,-1420.49,0.00032602,2]
[328143966,1716930712239,-1625.97,0.00032602,2]
[328143967,1716930712251,-647.0,0.00032602,2]
[328143968,1716930712263,-1101.55,0.00032602,2]
[328143969,1716930712274,-5271.34,0.00032602,2]
[328143970,1716930712287,-896.38,0.00032602,2]
[328143971,1716930712299,-4085.09,0.00032602,2]
[328143972,1716930712312,-3085.09,0.00032602,2]
[328143973,1716930712327,-500.0,0.00032602,2]
[328143974,1716930712339,-1027.97,0.00032602,2]
[328143975,1716930712350,-678.18,0.00032602,2]
[328143976,1716930712363,-607.8,0.00032602,2]
[328143977,1716930712375,-2974.94,0.00032602,2]
[328143978,1716930712387,-1217.15,0.00032602,2]
[328143979,1716930712400,-1190.26,0.00032602,2]
[328143980,1716930712413,-592.19,0.00032602,2]
[328143981,1716930712425,-4371.46,0.00032602,2]
[328143982,1716930712438,-1044.37,0.00032602,2]
[328143983,1716930712450,-707.12,0.00032602,2]
[328143984,1716930712462,-500.0,0.00032602,2]
[328143985,1716930712474,-513.35,0.00032602,2]
[328143986,1716930712489,-1474.98,0.00032602,2]
[328143987,1716930712505,-3176.31,0.00032602,2]
[328143988,1716930712519,-687.58,0.00032602,2]
[328143989,1716930712531,-3513.06,0.00032602,2]
[328143990,1716930712544,-1500.0,0.00032613,2]
[328143991,1716930712555,-150.0,0.00032627,7]
[328143992,1716930712566,-150.0,0.00032651,2]
[328143993,1716930712578,-500.0,0.00032686,10]
[328143994,1716930712590,-1003.4,0.000327,2]
[328143995,1716930712600,-150.0,0.000327,7]
[328143996,1716930712612,-6241.13819273,0.0003272,2]
[328143997,1716930712622,-6241.13819272,0.0003272,2]
[328143998,1716930712634,-6241.13819272,0.0003272,2]
[328143999,1716930712645,-150.0,0.00032752,2]
[328144000,1716930712657,-150.0,0.00032754,2]
[328144001,1716930712669,-150.0,0.0003278,2]
[328144002,1716930712681,-150.0,0.00032788,7]
[328144003,1716930712692,-524.47,0.000328,2]
[328144004,1716930712704,-949.94,0.000328,2]
[328144005,1716930712715,-150.0,0.000328,2]
[328144006,1716930712726,-150.0,0.00032804,2]
[328144007,1716930712738,-1500.0,0.00032825,2]
[328144008,1716930712749,-150.0,0.00032829,2]
[328144009,1716930712759,-1062.19084432,0.00032838,5]
[328144010,1716930712770,-1099.34149049,0.00032838,5]
[328144011,1716930712781,-1500.0,0.00032851,2]
[328144012,1716930712793,-5800.0,0.00032857,2]
[328144013,1716930712803,-150.0,0.00032858,2]
[328144014,1716930712816,-500.0,0.00032865,3]
[328144015,1716930712827,-5800.0,0.00032866,2]
[328144016,1716930712840,-500.0,0.00032874,3]
[328144017,1716930712850,-5800.0,0.00032874,2]
[328144018,1716930712861,-569.10549905,0.00032876,2]
[328144019,1716930712872,-909.32,0.00032876,2]
[328144020,1716930712883,-594.79,0.00032876,2]
[328144021,1716930712894,-569.9,0.00032876,2]
[328144022,1716930712905,-500.0,0.00032876,2]
[328144023,1716930712917,-500.0,0.00032876,2]
[328144024,1716930712928,-967.79,0.00032876,2]
[328144025,1716930712940,-1363.1,0.00032876,2]
[328144026,1716930712950,-667.3,0.00032876,2]
[328144027,1716930712962,-813.82,0.00032876,2]
[328144028,1716930712973,-670.95,0.00032876,2]
[328144029,1716930712985,-682.1,0.00032876,2]
[328144030,1716930712996,-613.37,0.00032876,2]
[328144031,1716930713007,-870.5,0.00032876,2]
[328144032,1716930713019,-746.34,0.00032876,2]
[328144033,1716930713030,-613.05,0.00032876,2]
[328144034,1716930713042,-758.6,0.00032876,2]
[328144035,1716930713053,-1046.34,0.00032876,120]
[328144036,1716930713065,-1046.34,0.00032876,120]
[328144037,1716930713077,-1046.34,0.00032876,120]
[328144038,1716930713090,-1046.34,0.00032876,120]
[328144039,1716930713101,-1046.34,0.00032876,120]
[328144040,1716930713112,-1046.34,0.00032876,120]
[328144041,1716930713124,-1046.34,0.00032876,120]
[328144042,1716930713136,-1046.34,0.00032876,120]
[328144043,1716930713147,-1046.34,0.00032876,120]
[328144044,1716930713159,-527.93,0.00032876,2]
[328144045,1716930713170,-1046.34,0.00032876,120]
[328144046,1716930713181,-1046.34,0.00032876,120]
[328144047,1716930713193,-1046.34,0.00032876,120]
[328144048,1716930713204,-1046.34,0.00032876,120]
[328144049,1716930713216,-535.29,0.00032876,2]
[328144050,1716930713227,-1046.34,0.00032876,120]
[328144051,1716930713239,-1046.34,0.00032876,120]
[328144052,1716930713250,-1046.34,0.00032876,120]
[328144053,1716930713261,-1046.34,0.00032876,120]
[328144054,1716930713273,-1046.34,0.00032876,120]
[328144055,1716930713284,-1046.34,0.00032876,120]
[328144056,1716930713297,-1046.34,0.00032876,120]
[328144057,1716930713310,-1046.34,0.00032876,120]
[328144058,1716930713327,-1046.34,0.00032876,120]
[328144059,1716930713341,-891.34,0.00032876,2]
[328144060,1716930713354,-1046.34,0.00032876,120]
[328144061,1716930713368,-1046.4057432,0.00032876,120]
[328144062,1716930713381,-556.26,0.00032876,2]
[328144063,1716930713394,-463.47357001,0.00032876,2]
[328144064,1716930713407,-617.75,0.00032876,2]
[328144065,1716930713419,-655.52,0.00032876,2]
[328144066,1716930713432,-982.73,0.00032876,2]
[328144067,1716930713445,-879.75,0.00032876,2]
[328144068,1716930713458,-625.8125158,0.00032876,2]
[328144069,1716930713471,-598.93,0.00032876,2]
[328144070,1716930713484,-607.01,0.00032876,2]
[328144071,1716930713498,-869.48,0.00032876,2]
[328144072,1716930713511,-515.25,0.00032876,2]
[328144073,1716930713525,-500.0,0.00032876,2]
[328144074,1716930713538,-501.39,0.00032876,2]
[328144075,1716930713551,-180.72860616,0.00032876,2]
[328144076,1716930713563,-238.14,0.00032876,2]
[328144077,1716930713576,-1260.25,0.00032876,2]
[328144078,1716930713590,-367.44066022,0.00032876,2]
[328144079,1716930713602,-554.17,0.00032876,2]
[328144080,1716930713614,-1185.96,0.00032876,2]
[328144081,1716930713628,-172.94,0.00032876,2]
[328144082,1716930713640,-383.70902409,0.00032876,2]
[328144083,1716930713654,-163.70780882,0.00032876,2]
[328144084,1716930713666,-512.07,0.00032876,2]
[328144085,1716930713681,-577.36,0.00032876,2]
[328144086,1716930713693,-441.7271081,0.00032876,2]
[328144087,1716930713706,-544.23,0.00032876,2]
[328144088,1716930713718,-917.76,0.00032876,2]
[328144089,1716930713731,-209.22029777,0.00032876,2]
[328144090,1716930713743,-715.45,0.00032876,2]
[328144091,1716930713756,-504.89,0.00032876,2]
[328144092,1716930713768,-500.0,0.00032876,2]
[328144093,1716930713780,-500.0,0.00032876,2]
[328144094,1716930713793,-611.87,0.00032876,2]
[328144095,1716930713805,-824.89,0.00032876,2]
[328144096,1716930713817,-500.0,0.00032876,2]
[328144097,1716930713829,-739.81,0.00032876,2]
[328144098,1716930713844,-500.0,0.00032876,2]
[328144099,1716930713856,-500.0,0.00032876,2]
[328144100,1716930713869,-1320.63,0.00032876,2]
[328144101,1716930713881,-1793.48,0.00032876,2]
[328144102,1716930713894,-1192.64,0.00032876,2]
[328144103,1716930714094,-850.59,0.00032876,2]
[328144104,1716930714108,-550.9,0.00032876,2]
[328144105,1716930714118,-656.92,0.00032876,2]
[328144106,1716930714128,-806.35,0.00032876,2]
[328144107,1716930714137,-9315.09,0.00032876,2]
[328144108,1716930714147,-15327.51,0.00032876,2]
[328144109,1716930714156,-635.68,0.00032876,2]
[328144110,1716930714165,-3419.04,0.00032876,2]
[328144111,1716930714174,-1271.68,0.00032876,2]
[328144112,1716930714184,-525.9,0.00032876,2]
[328144113,1716930714193,-1237.95,0.00032876,2]
[328144114,1716930714202,-5036.02,0.00032876,2]
[328144115,1716930714211,-2402.16,0.00032876,2]
[328144116,1716930714221,-583.74,0.00032876,2]
[328144117,1716930714230,-1081.68,0.00032876,2]
[328144118,1716930714239,-2135.42,0.00032876,2]
[328144119,1716930714249,-500.0,0.00032876,2]
[328144120,1716930714258,-459.42961219,0.00032876,2]
[328144121,1716930714267,-874.24,0.00032876,2]
[328144122,1716930714276,-832.12,0.00032876,2]
[328144123,1716930714285,-889.71,0.00032876,2]
[328144124,1716930714294,-1494.87,0.00032876,2]
[328144125,1716930714303,-588.22,0.00032876,2]
[328144126,1716930714312,-753.43,0.00032876,2]
[328144127,1716930714326,-500.0,0.00032876,2]
[328144128,1716930714337,-656.49,0.00032876,2]
[328144129,1716930714346,-1040.11,0.00032876,2]
[328144130,1716930714355,-5379.01,0.00032876,2]
[328144131,1716930714365,-1151.4,0.00032876,2]
[328144132,1716930714374,-657.54,0.00032876,2]
[328144133,1716930714383,-2503.88,0.00032876,2]
[328144134,1716930714393,-500.0,0.00032876,2]
[328144135,1716930714405,-500.0,0.00032876,2]
[328144136,1716930714415,-523.58,0.00032876,2]
[328144137,1716930714424,-992.19,0.00032876,2]
[328144138,1716930714433,-591.51,0.00032876,2]
[328144139,1716930714443,-2469.11,0.00032876,2]
[328144140,1716930714452,-604.6,0.00032876,2]
[328144141,1716930714461,-1881.26,0.00032876,2]
[328144142,1716930714470,-1071.3,0.00032876,2]
[328144143,1716930714480,-1270.47,0.00032876,2]
[328144144,1716930714489,-8259.77,0.00032876,2]
[328144145,1716930714498,-1123.23,0.00032876,2]
[328144146,1716930714508,-2563.92,0.00032876,2]
[328144147,1716930714517,-1027.88,0.00032876,2]
[328144148,1716930714526,-772.72,0.00032876,2]
[328144149,1716930714536,-914.87,0.00032876,2]
[328144150,1716930714546,-887.31,0.00032876,2]
[328144151,1716930714555,-4971.2,0.00032876,2]
[328144152,1716930714564,-1127.13,0.00032876,2]
[328144153,1716930714573,-571.26,0.00032876,2]
[328144154,1716930714583,-590.27,0.00032876,2]
[328144155,1716930714592,-532.19334173,0.00032876,2]
[328144156,1716930714602,-606.32,0.00032876,2]
[328144157,1716930714611,-824.0,0.00032876,2]
[328144158,1716930714622,-745.85,0.00032876,2]
[328144159,1716930714631,-853.64,0.00032876,2]
[328144160,1716930714640,-585.71,0.00032876,2]
[328144161,1716930714649,-1137.45,0.00032876,2]
[328144162,1716930714660,-539.51,0.00032876,2]
[328144163,1716930714669,-1448.06,0.00032876,2]
[328144164,1716930714679,-2302.76,0.00032876,2]
[328144165,1716930714689,-3336.18,0.00032876,2]
[328144166,1716930714698,-500.0,0.00032876,2]
[328144167,1716930714707,-1236.12,0.00032876,2]
[328144168,1716930714716,-317.95417167,0.00032876,2]
[328144169,1716930714726,-885.34,0.00032876,2]
[328144170,1716930714735,-602.93,0.00032876,2]
[328144171,1716930714745,-1036.79,0.00032876,2]
[328144172,1716930714754,-13852.98,0.00032876,2]
[328144173,1716930714763,-1313.69,0.00032876,2]
[328144174,1716930714773,-1592.22,0.00032876,2]
[328144175,1716930714782,-1158.67,0.00032876,2]
[328144176,1716930714791,-916.61,0.00032876,2]
[328144177,1716930714800,-2650.73,0.00032876,2]
[328144178,1716930714809,-4639.4,0.00032876,2]
[328144179,1716930714819,-720.94,0.00032876,2]
[328144180,1716930714828,-850.51,0.00032876,2]
[328144181,1716930714839,-1212.71,0.00032876,2]
[328144182,1716930714849,-1305.79,0.00032876,2]
[328144183,1716930714858,-1077.58,0.00032876,2]
[328144184,1716930714868,-564.13,0.00032876,2]
[328144185,1716930714878,-789.13,0.00032876,2]
[328144186,1716930714888,-928.91,0.00032876,2]
[328144187,1716930714897,-920.12,0.00032876,2]
[328144188,1716930714907,-717.42,0.00032876,2]
[328144189,1716930714916,-881.35,0.00032876,2]
[328144190,1716930714926,-500.0,0.00032876,2]
[328144191,1716930714936,-654.73,0.00032876,2]
[328144192,1716930714946,-500.0,0.00032876,2]
[328144193,1716930714955,-3338.18,0.00032876,2]
[328144194,1716930714964,-1966.13,0.00032876,2]
[328144195,1716930714974,-570.33,0.00032876,2]
[328144196,1716930714984,-500.0,0.00032876,2]
[328144197,1716930714993,-1420.49,0.00032876,2]
[328144198,1716930715003,-1625.97,0.00032876,2]
[328144199,1716930715012,-647.0,0.00032876,2]
[328144200,1716930715022,-1101.55,0.00032876,2]
[328144201,1716930715031,-5271.34,0.00032876,2]
[328144202,1716930715041,-896.38,0.00032876,2]
[328144203,1716930715050,-4085.09,0.00032876,2]
[328144204,1716930715059,-3085.09,0.00032876,2]
[328144205,1716930715069,-1027.97,0.00032876,2]
[328144206,1716930715078,-500.0,0.00032876,2]
[328144207,1716930715089,-678.18,0.00032876,2]
[328144208,1716930715107,-607.8,0.00032876,2]
[328144209,1716930715120,-2974.94,0.00032876,2]
[328144210,1716930715130,-1217.15,0.00032876,2]
[328144211,1716930715140,-1190.26,0.00032876,2]
[328144212,1716930715150,-592.19,0.00032876,2]
[328144213,1716930715159,-4371.46,0.00032876,2]
[328144214,1716930715169,-1044.37,0.00032876,2]
[328144215,1716930715180,-707.12,0.00032876,2]
[328144216,1716930715190,-610.54899819,0.00032876,2]
[328144217,1716930715200,-513.35,0.00032876,2]
[328144218,1716930715209,-1474.98,0.00032876,2]
[328144219,1716930715219,-3176.31,0.00032876,2]
[328144220,1716930715229,-687.58,0.00032876,2]
[328144221,1716930715238,-3513.06,0.00032876,2]
[328144222,1716930715248,-1000.0,0.00032877,13]
[328144223,1716930715258,-1000.0,0.00032877,13]
[328144224,1716930715267,-1000.0,0.00032877,13]
[328144225,1716930715277,-1000.0,0.00032877,13]
[328144226,1716930715287,-1000.0,0.00032877,13]
[328144227,1716930715297,-1000.0,0.00032877,13]
[328144228,1716930715307,-1000.0,0.00032877,13]
[328144229,1716930715319,-1000.0,0.00032877,13]
[328144230,1716930715329,-1000.0,0.00032877,13]
[328144231,1716930715342,-1000.0,0.00032877,13]
[328144232,1716930715352,-1000.0,0.00032877,13]
[328144233,1716930715362,-1000.0,0.00032877,13]
[328144234,1716930715372,-1000.0,0.00032877,13]
[328144235,1716930715382,-1000.0,0.00032877,13]
[328144236,1716930715391,-1000.0,0.00032877,13]
[328144237,1716930715404,-1000.0,0.00032877,13]
[328144238,1716930715414,-1000.0,0.00032877,13]
[328144239,1716930715424,-1000.0,0.00032877,13]
[328144240,1716930715433,-591.0,0.00032877,13]
[328144241,1716930715444,-151.0,0.00032877,7]
[328144242,1716930715454,-151.0,0.00032877,7]
[328144243,1716930715464,-151.0,0.00032877,7]
[328144244,1716930715474,-151.0,0.00032877,7]
[328144245,1716930715484,-151.0,0.00032877,7]
[328144246,1716930715495,-151.0,0.00032877,7]
[328144247,1716930715504,-151.0,0.00032877,7]
[328144248,1716930715514,-151.0,0.00032877,7]
[328144249,1716930715524,-170.106316,0.00032877,7]
[328144250,1716930715534,-18285.14,0.00032877,2]
[328144251,1716930715545,-300.0,0.00032877,10]
[328144252,1716930715554,-300.0,0.00032877,10]
[328144253,1716930715564,-317.62240316,0.00032877,10]
[328144255,1716930715573,-500.0,0.00032882,3]
[328144256,1716930715585,-500.0,0.00032882,3]
[328144257,1716930715595,-5800.0,0.00032883,2]
[328144259,1716930715605,-500.0,0.00032891,3]
[328144260,1716930715614,-500.0,0.00032891,3]
[328144261,1716930715624,-5800.0,0.00032892,2]
[328144263,1716930715634,-150.0,0.00032894,2]
[328144264,1716930715643,-150.0,0.00032894,2]
[328144266,1716930715653,-615.84835543,0.000329,30]
[328144267,1716930715662,-13068.53345874,0.000329,30]
[328144268,1716930715672,-160.0,0.000329,2]
[328144269,1716930715681,-5370.66650863,0.000329,3]
[328144270,1716930715691,-500.0,0.000329,3]
[328144271,1716930715700,-320.0,0.000329,2]
[328144272,1716930715710,-752.0,0.000329,2]
[328144273,1716930715719,-919.75301589,0.000329,2]
[328144274,1716930715728,-5800.0,0.000329,2]
[328144275,1716930715737,-1000.0,0.000329,2]
[328144276,1716930715747,-269.0,0.000329,2]
[328144277,1716930715757,-500.0,0.000329,3]
[328144278,1716930715768,-6083.43850244,0.000329,3]
[328144279,1716930715778,-160.0,0.000329,2]
[328144280,1716930715788,-400.0,0.000329,12]
[328144281,1716930715798,-1500.0,0.000329,12]
[328144282,1716930715807,-151.0,0.00032904,7]
[328144283,1716930715817,-151.0,0.00032904,7]
[328144284,1716930715827,-151.0,0.00032904,7]
[328144285,1716930715838,-151.0,0.00032904,7]
[328144286,1716930715848,-151.0,0.00032904,7]
[328144287,1716930715858,-243.441004,0.00032904,7]
[328144288,1716930715868,-150.0,0.00032908,7]
[328144289,1716930715878,-2985.26352396,0.00032922,7]
[328144290,1716930715887,-924.31299125,0.00032922,7]
[328144291,1716930715897,-1500.0,0.00032939,2]
[328144292,1716930715907,-150.0,0.0003297,2]
[328144293,1716930715918,-2000.0,0.00032986,30]
[328144294,1716930715928,-150.0,0.00032993,2]
[328144295,1716930715937,-1000.0,0.00032999,120]
[328144296,1716930715947,-567.93943453,0.00033,30]
[328144297,1716930715957,-30000.0,0.00033,30]
[328144298,1716930715966,-21637.0,0.00033,3]
[328144299,1716930715976,-500.0,0.00033,2]
[328144300,1716930715985,-2181.69771022,0.00033,2]
[328144301,1716930715995,-500.51266613,0.00033,2]
[328144302,1716930716005,-132279.76,0.00033,5]
[328144303,1716930716015,-1961.32548544,0.00033,2]
[328144304,1716930716024,-1272.59960213,0.00033,2]
[328144305,1716930716033,-524.47,0.00033,2]
[328144306,1716930716043,-1751.84350295,0.00033,20]
[328144307,1716930716053,-500.0,0.00033,2]
[328144308,1716930716063,-500.0,0.00033,2]
[328144309,1716930716072,-500.0,0.00033,2]
[328144310,1716930716082,-500.0,0.00033,2]
[328144311,1716930716092,-500.0,0.00033,2]
[328144312,1716930716102,-500.0,0.00033,2]
[328144313,1716930716112,-1250.0,0.00033,2]
[328144314,1716930716121,-725.219366,0.00033,2]
[328144315,1716930716131,-150.0,0.00033031,2]
[328144316,1716930716141,-3621.11176206,0.00033118,2]
[328144317,1716930716150,-1500.0,0.00033119,2]
[328144318,1716930716160,-150.0,0.00033144,2]
[328144319,1716930716170,-909.32,0.0003315,2]
[328144320,1716930716180,-594.79,0.0003315,2]
[328144321,1716930716189,-569.9,0.0003315,2]
[328144322,1716930716198,-605.9998108,0.0003315,2]
[328144323,1716930716208,-317.10961588,0.0003315,2]
[328144324,1716930716218,-967.79,0.0003315,2]
[328144325,1716930716228,-1363.1,0.0003315,2]
[328144326,1716930716238,-667.3,0.0003315,2]
[328144327,1716930716247,-813.82,0.0003315,2]
[328144328,1716930716257,-670.95,0.0003315,2]
[328144329,1716930716266,-682.1,0.0003315,2]
[328144330,1716930716275,-613.37,0.0003315,2]
[328144331,1716930716285,-870.5,0.0003315,2]
[328144332,1716930716294,-746.34,0.0003315,2]
[328144333,1716930716304,-613.05,0.0003315,2]
[328144334,1716930716314,-758.6,0.0003315,2]
[328144335,1716930716328,-527.93,0.0003315,2]
[328144336,1716930716338,-535.29,0.0003315,2]
[328144337,1716930716348,-891.34,0.0003315,2]
[328144338,1716930716359,-556.26,0.0003315,2]
[328144339,1716930716368,-617.75,0.0003315,2]
[328144340,1716930716378,-655.52,0.0003315,2]
[328144341,1716930716387,-982.73,0.0003315,2]
[328144342,1716930716399,-879.75,0.0003315,2]
[328144343,1716930716408,-598.93,0.0003315,2]
[328144344,1716930716418,-607.01,0.0003315,2]
[328144345,1716930716427,-869.48,0.0003315,2]
[328144346,1716930716437,-515.25,0.0003315,2]
[328144347,1716930716446,-471.43546782,0.0003315,2]
[328144348,1716930716456,-501.39,0.0003315,2]
[328144349,1716930716466,-1260.25,0.0003315,2]
[328144350,1716930716480,-554.17,0.0003315,2]
[328144351,1716930716490,-1185.96,0.0003315,2]
[328144352,1716930716500,-172.94,0.0003315,2]
[328144353,1716930716509,-512.07,0.0003315,2]
[328144354,1716930716519,-577.36,0.0003315,2]
[328144355,1716930716529,-544.23,0.0003315,2]
[328144356,1716930716539,-917.76,0.0003315,2]
[328144357,1716930716549,-715.45,0.0003315,2]
[328144358,1716930716559,-504.89,0.0003315,2]
[328144359,1716930716568,-500.0,0.0003315,2]
[328144360,1716930716578,-221.39916439,0.0003315,2]
[328144361,1716930716589,-611.87,0.0003315,2]
[328144362,1716930716598,-824.89,0.0003315,2]
[328144363,1716930716607,-500.0,0.0003315,2]
[328144364,1716930716618,-739.81,0.0003315,2]
[328144365,1716930716628,-604.89001802,0.0003315,2]
[328144366,1716930716639,-567.16189331,0.0003315,2]
[328144367,1716930716649,-1320.63,0.0003315,2]
[328144368,1716930716659,-1793.48,0.0003315,2]
[328144369,1716930716669,-1192.64,0.0003315,2]
[328144370,1716930716678,-850.59,0.0003315,2]
[328144371,1716930716688,-550.9,0.0003315,2]
[328144372,1716930716697,-656.92,0.0003315,2]
[328144373,1716930716707,-806.35,0.0003315,2]
[328144374,1716930716722,-9315.09,0.0003315,2]
[328144375,1716930716731,-15327.51,0.0003315,2]
[328144376,1716930716740,-635.68,0.0003315,2]
[328144377,1716930716749,-3419.04,0.0003315,2]
[328144378,1716930716759,-1271.68,0.0003315,2]
[328144379,1716930716768,-525.9,0.0003315,2]
[328144380,1716930716778,-1237.95,0.0003315,2]
[328144381,1716930716787,-5036.02,0.0003315,2]
[328144382,1716930716797,-2402.16,0.0003315,2]
[328144383,1716930716806,-583.74,0.0003315,2]
[328144384,1716930716818,-1081.68,0.0003315,2]
[328144385,1716930716828,-2135.42,0.0003315,2]
[328144386,1716930716838,-500.0,0.0003315,2]
[328144387,1716930716848,-874.24,0.0003315,2]
[328144388,1716930716857,-832.12,0.0003315,2]
[328144389,1716930716867,-1494.87,0.0003315,2]
[328144390,1716930716878,-889.71,0.0003315,2]
[328144391,1716930716888,-588.22,0.0003315,2]
[328144392,1716930716898,-753.43,0.0003315,2]
[328144393,1716930716908,-500.0,0.0003315,2]
[328144394,1716930716917,-656.49,0.0003315,2]
[328144395,1716930716927,-1040.11,0.0003315,2]
[328144396,1716930716937,-5379.01,0.0003315,2]
[328144397,1716930716947,-1151.4,0.0003315,2]
[328144398,1716930716957,-657.54,0.0003315,2]
[328144399,1716930716966,-2503.88,0.0003315,2]
[328144400,1716930716975,-420.63082951,0.0003315,2]
[328144401,1716930716984,-500.0,0.0003315,2]
[328144402,1716930716994,-523.58,0.0003315,2]
[328144403,1716930717003,-992.19,0.0003315,2]
[328144404,1716930717012,-591.51,0.0003315,2]
[328144405,1716930717022,-2469.11,0.0003315,2]
[328144406,1716930717031,-604.6,0.0003315,2]
[328144407,1716930717040,-1881.26,0.0003315,2]
[328144408,1716930717049,-1071.3,0.0003315,2]
[328144409,1716930717058,-1270.47,0.0003315,2]
[328144410,1716930717067,-8259.77,0.0003315,2]
[328144411,1716930717077,-1123.23,0.0003315,2]
[328144412,1716930717087,-2563.92,0.0003315,2]
[328144413,1716930717337,-1027.88,0.0003315,2]
[328144414,1716930717350,-772.72,0.0003315,2]
[328144415,1716930717359,-914.87,0.0003315,2]
[328144416,1716930717368,-887.31,0.0003315,2]
[328144417,1716930717378,-4971.2,0.0003315,2]
[328144418,1716930717387,-1127.13,0.0003315,2]
[328144419,1716930717398,-571.26,0.0003315,2]
[328144420,1716930717407,-590.27,0.0003315,2]
[328144421,1716930717416,-606.32,0.0003315,2]
[328144422,1716930717426,-824.0,0.0003315,2]
[328144423,1716930717435,-745.85,0.0003315,2]
[328144424,1716930717444,-853.64,0.0003315,2]
[328144425,1716930717453,-585.71,0.0003315,2]
[328144426,1716930717462,-1137.45,0.0003315,2]
[328144427,1716930717471,-539.51,0.0003315,2]
[328144428,1716930717480,-1448.06,0.0003315,2]
[328144429,1716930717490,-2302.76,0.0003315,2]
[328144430,1716930717499,-3336.18,0.0003315,2]
[328144431,1716930717508,-500.0,0.0003315,2]
[328144432,1716930717518,-1236.12,0.0003315,2]
[328144433,1716930717527,-885.34,0.0003315,2]
[328144434,1716930717536,-602.93,0.0003315,2]
[328144435,1716930717546,-1036.79,0.0003315,2]
[328144436,1716930717555,-13852.98,0.0003315,2]
[328144437,1716930717564,-1313.69,0.0003315,2]
[328144438,1716930717573,-1592.22,0.0003315,2]
[328144439,1716930717584,-1158.67,0.0003315,2]
[328144440,1716930717593,-916.61,0.0003315,2]
[328144441,1716930717602,-2650.73,0.0003315,2]
[328144442,1716930717612,-4639.4,0.0003315,2]
[328144443,1716930717621,-720.94,0.0003315,2]
[328144444,1716930717630,-850.51,0.0003315,2]
[328144445,1716930717639,-1212.71,0.0003315,2]
[328144446,1716930717648,-1305.79,0.0003315,2]
[328144447,1716930717658,-1077.58,0.0003315,2]
[328144448,1716930717667,-564.13,0.0003315,2]
[328144449,1716930717676,-789.13,0.0003315,2]
[328144450,1716930717685,-928.91,0.0003315,2]
[328144451,1716930717694,-920.12,0.0003315,2]
[328144452,1716930717704,-717.42,0.0003315,2]
[328144453,1716930717713,-881.35,0.0003315,2]
[328144454,1716930717722,-235.11529704,0.0003315,2]
[328144455,1716930717732,-654.73,0.0003315,2]
[328144456,1716930717741,-500.0,0.0003315,2]
[328144457,1716930717751,-3338.18,0.0003315,2]
[328144458,1716930717760,-1966.13,0.0003315,2]
[328144459,1716930717770,-570.33,0.0003315,2]